bitfinex-derivatives/quotes_BTCF0:USTF0_20251219
["timestamp","ask_amount","ask_price","bid_price","bid_amount"]
[1766114149614,0.0115877,86346.0,86322.0,0.07808]
[1766114149814,0.011588,86344.0,86323.0,0.0174706]
[1766114150118,0.1461,86344.0,86323.0,0.0174706]
[1766114150512,0.1461,86344.0,86320.0,0.0115911]
[1766114150813,0.1461,86334.0,86320.0,0.00396]
[1766114151017,0.1461,86334.0,86315.0,8.5e-05]
[1766114151210,0.00017368,86336.0,86296.0,0.07902]
[1766114151211,0.0115908,86323.0,86296.0,0.07902]
[1766114151518,2.43353368,86336.0,86295.0,0.00588]
[1766114151519,0.1461,86318.0,86295.0,0.00588]
[1766114151721,0.1461,86314.0,86290.0,0.0115951]
[1766114151904,0.1576931,86306.0,86282.0,0.00588]
[1766114152222,0.00017378,86303.0,86282.0,0.0174761]
[1766114152413,0.00017378,86303.0,86282.0,0.0115961]
[1766114152414,0.14627378,86303.0,86282.0,0.0115961]
[1766114152621,0.14627378,86303.0,86282.0,0.0174761]
[1766114152824,0.0115941,86298.0,86279.0,0.00588]
[1766114153123,0.00588,86297.0,86279.0,0.00588]
[1766114153325,8e-08,86303.0,86294.0,0.0115945]
[1766114153522,8e-08,86303.0,86290.0,0.0115951]
[1766114153821,8e-08,86303.0,86293.0,0.0115947]
[1766114154418,8e-08,86303.0,86289.0,0.00588]
[1766114154419,8e-08,86303.0,86289.0,0.01764898]
[1766114154626,8e-08,86303.0,86293.0,0.0115947]
[1766114156219,8e-08,86303.0,86290.0,0.00588]
[1766114156420,8e-08,86303.0,86291.0,0.011595]
[1766114157124,0.00588,86305.0,86291.0,0.08033]
[1766114157317,0.00292,86324.0,86296.0,0.08033]
[1766114157516,0.1461,86331.0,86302.0,0.0115934]
[1766114157517,0.00292,86323.0,86302.0,0.0115934]
[1766114158124,0.00292,86323.0,86304.0,0.00017378]
[1766114158328,0.01176478,86321.0,86304.0,0.00017378]
[1766114159328,0.1576914,86318.0,86304.0,0.00017378]
[1766114160228,0.00017378,86321.0,86304.0,0.00017378]
[1766114160415,0.00017378,86321.0,86307.0,0.0115929]
[1766114160614,0.00017378,86321.0,86304.0,0.09332688]
[1766114160938,0.00017378,86321.0,86307.0,0.0115929]
[1766114161121,0.00017378,86321.0,86308.0,0.00588]
[1766114161428,0.00588,86333.0,86314.0,0.0115919]
[1766114161629,0.00588,86332.0,86314.0,0.0115919]
[1766114161929,0.1461,86338.0,86313.0,0.08157]
[1766114162116,0.00588,86335.0,86314.0,0.00588]
[1766114162311,0.00017378,86333.0,86320.0,0.0115911]
[1766114162714,0.00017378,86333.0,86316.0,0.00017378]
[1766114162919,0.0115909,86322.0,86316.0,3.78e-06]
[1766114163115,0.14553,86322.0,86298.0,0.011594]
[1766114163524,0.0115904,86326.0,86299.0,0.00588]
[1766114163730,0.0115914,86319.0,86302.0,0.0115935]
[1766114163929,0.00588,86318.0,86302.0,0.0115935]
[1766114164123,0.15141,86318.0,86301.0,0.00017378]
[1766114164328,0.0115918,86316.0,86301.0,0.00017378]
[1766114164528,0.15158378,86318.0,86301.0,0.00017378]
[1766114164722,0.011592,86314.0,86301.0,0.00017378]
[1766114164922,0.15158378,86318.0,86301.0,0.00017378]
[1766114165125,0.0115928,86308.0,86301.0,0.00017378]
[1766114165320,0.14553,86315.0,86284.0,0.08036]
[1766114165521,0.14553,86301.0,86274.0,0.0115973]
[1766114165818,0.0115933,86304.0,86276.0,0.011597]
[1766114165819,0.0115949,86293.0,86276.0,0.011597]
[1766114166130,0.0115949,86293.0,86275.0,0.00588]
[1766114166338,0.00017378,86293.0,86276.0,0.011597]
[1766114167322,0.0115954,86289.0,86273.0,0.00588]
[1766114167535,0.00017378,86293.0,86277.0,0.0115968]
[1766114167731,0.00017378,86293.0,86273.0,0.00588]
[1766114168431,0.00017378,86293.0,86276.0,0.0115969]
[1766114168934,0.00017378,86293.0,86279.0,0.0115966]
[1766114169133,0.01176868,86293.0,86274.0,0.00588]
[1766114169428,0.00017378,86293.0,86274.0,0.00588]
[1766114169819,0.00017378,86293.0,86280.0,0.0115964]
[1766114170023,0.00017378,86293.0,86276.0,0.0115969]
[1766114170427,0.01176858,86293.0,86274.0,0.00588]
[1766114170633,0.00017378,86293.0,86275.0,0.011597]
[1766114170836,0.00017378,86293.0,86276.0,0.00544]
[1766114171535,0.0115949,86292.0,86276.0,0.00544]
[1766114171828,0.0115949,86292.0,86271.0,0.0115976]
[1766114172033,0.0115949,86292.0,86272.0,0.00588]
[1766114172220,0.00605378,86293.0,86272.0,0.08785]
[1766114172422,2.43512,86307.0,86281.0,0.08197]
[1766114172628,0.00588,86312.0,86290.0,0.08197]
[1766114172822,0.0115897,86331.0,86290.0,0.08197]
[1766114172823,2.57608,86326.0,86311.0,0.0115922]
[1766114173029,0.0908578,86332.0,86313.0,0.08199]
[1766114173628,0.00017378,86331.0,86314.0,0.01176568]
[1766114173829,0.00017378,86331.0,86316.0,0.0115915]
[1766114174032,0.00017378,86331.0,86317.0,0.00588]
[1766114174429,0.00017378,86331.0,86314.0,0.00017378]
[1766114174430,0.01176348,86331.0,86316.0,0.00588]
[1766114174839,0.00017378,86331.0,86317.0,0.0115915]
[1766114175332,0.00017378,86331.0,86316.0,0.00588]
[1766114175740,0.00017378,86331.0,86316.0,0.08965]
[1766114176035,0.00017378,86331.0,86316.0,0.00588]
[1766114176231,0.0115898,86330.0,86317.0,0.00588]
[1766114176438,0.0115898,86330.0,86316.0,0.00588]
[1766114176939,0.00017378,86331.0,86316.0,0.00588]
[1766114177123,0.14084,86330.0,86314.0,0.00017378]
[1766114177323,0.00112,86330.0,86314.0,0.00017378]
[1766114177532,0.00112,86330.0,86314.0,0.09460558]
[1766114177835,3.78e-06,86331.0,86317.0,0.0115915]
[1766114178438,3.78e-06,86331.0,86319.0,0.0115912]
[1766114178736,3.78e-06,86331.0,86315.0,0.00588]
[1766114178935,3.78e-06,86331.0,86316.0,0.00588]
[1766114179239,0.0115905,86325.0,86314.0,0.00017378]
[1766114179741,3.78e-06,86331.0,86314.0,0.00017378]
[1766114179941,3.78e-06,86331.0,86314.0,0.08304378]
[1766114180441,3.78e-06,86331.0,86321.0,0.011591]
[1766114180747,0.0115879,86344.0,86324.0,0.08287]
[1766114181034,0.0115883,86341.0,86324.0,0.08287]
[1766114181236,0.14084,86346.0,86319.0,0.00588]
[1766114181447,0.0115894,86333.0,86320.0,0.00588]
[1766114181640,0.00572,86343.0,86316.0,0.08261]
[1766114181833,0.00017378,86338.0,86321.0,0.00017378]
[1766114182637,0.00017378,86338.0,86322.0,0.08261]
[1766114182840,0.29468905,86360.0,86321.0,0.00017378]
[1766114182841,0.14084,86364.0,86334.0,0.08261]
[1766114183140,0.3208,86368.0,86348.0,0.0115872]
[1766114183141,0.0115848,86368.0,86348.0,0.0115872]
[1766114183448,0.00588,86369.0,86350.0,0.011587]
[1766114183630,0.0115847,86368.0,86349.0,0.00588]
[1766114183829,0.00017378,86367.0,86350.0,0.00017378]
[1766114184440,0.14101378,86367.0,86350.0,8e-08]
[1766114184738,0.00017378,86367.0,86350.0,8e-08]
[1766114185134,0.0115858,86360.0,86350.0,8e-08]
[1766114185333,0.0115853,86363.0,86350.0,8e-08]
[1766114185734,0.0115853,86364.0,86350.0,8e-08]
[1766114186144,0.14101378,86367.0,86350.0,8e-08]
[1766114186145,0.011586,86358.0,86350.0,8e-08]
[1766114186331,0.011586,86358.0,86331.0,0.08282]
[1766114186332,0.0115876,86347.0,86331.0,0.08282]
[1766114186540,0.0115876,86347.0,86332.0,0.00496]
[1766114186734,0.0115871,86351.0,86332.0,0.00496]
[1766114187044,0.011586,86359.0,86334.0,0.08282]
[1766114187339,0.011587,86351.0,86341.0,0.08282]
[1766114187545,0.14084,86357.0,86321.0,2.43464]
[1766114187744,0.0115881,86343.0,86325.0,0.0115904]
[1766114187948,0.0115893,86334.0,86311.0,0.08282]
[1766114188145,0.0115898,86330.0,86313.0,2.446232]
[1766114188655,0.01176358,86330.0,86314.0,0.00588]
[1766114188836,0.01176358,86330.0,86315.0,0.00588]
[1766114189040,0.00017378,86330.0,86315.0,0.00588]
[1766114189646,0.00017378,86330.0,86316.0,0.00588]
[1766114189949,0.00017378,86330.0,86314.0,0.0115918]
[1766114190151,0.00017378,86330.0,86315.0,0.00588]
[1766114190341,0.00017378,86330.0,86316.0,0.00588]
[1766114190541,0.00017378,86330.0,86314.0,0.0115918]
[1766114190750,0.00017378,86330.0,86316.0,0.0115916]
[1766114190952,0.00017378,86330.0,86313.0,0.00017378]
[1766114191346,0.00017378,86330.0,86314.0,0.00588]
[1766114191645,0.00017378,86330.0,86315.0,0.0115917]
[1766114191848,3.78e-06,86330.0,86315.0,0.0935417]
[1766114192455,3.78e-06,86330.0,86315.0,0.08195]
[1766114193337,0.0115906,86324.0,86313.0,0.00017378]
[1766114193537,3.78e-06,86330.0,86314.0,0.00588]
[1766114193743,3.78e-06,86330.0,86315.0,0.00588]
[1766114194153,0.0115907,86324.0,86313.0,0.00017378]
[1766114194454,3.78e-06,86330.0,86313.0,0.00017378]
[1766114194455,0.0115913,86319.0,86313.0,0.00017378]
[1766114194843,0.0115913,86319.0,86313.0,8e-08]
[1766114195038,0.0115916,86317.0,86311.0,8e-08]
[1766114195441,0.14084,86324.0,86307.0,0.00011575]
[1766114195649,0.0115915,86318.0,86308.0,0.00588]
[1766114195848,0.14084,86324.0,86308.0,0.00588]
[1766114195849,0.0115913,86319.0,86308.0,0.00588]
[1766114196249,0.14084,86324.0,86308.0,0.00588]
[1766114196250,0.0115917,86316.0,86308.0,0.00588]
[1766114196445,0.0115917,86316.0,86307.0,0.00011575]
[1766114196446,0.0115913,86320.0,86307.0,0.00011575]
[1766114196645,0.0115915,86317.0,86307.0,0.00011575]
[1766114196953,3.78e-06,86330.0,86283.0,2.51809]
[1766114196954,0.0115933,86304.0,86283.0,2.51809]
[1766114197159,0.14095575,86316.0,86284.0,0.00588]
[1766114197160,0.14084,86305.0,86284.0,0.00588]
[1766114197350,0.0115934,86303.0,86285.0,0.00588]
[1766114197554,0.14084,86303.0,86285.0,0.00588]
[1766114198058,0.0115942,86298.0,86286.0,0.00276]
[1766114198353,9.132e-05,86297.0,86285.0,0.00017378]
[1766114198561,0.0115953,86289.0,86250.0,0.0116005]
[1766114198752,0.0115953,86289.0,86264.0,0.08345]
[1766114199154,0.0115953,86289.0,86270.0,0.0115977]
[1766114199452,0.0115954,86289.0,86271.0,0.00588]
[1766114199652,0.0115957,86287.0,86271.0,0.00588]
[1766114199853,0.00017378,86289.0,86271.0,0.00588]
[1766114200052,0.00017378,86289.0,86273.0,0.0115974]
[1766114200864,0.00017378,86289.0,86272.0,0.08347]
[1766114201054,0.14084,86288.0,86266.0,0.0115983]
[1766114201255,0.00017378,86289.0,86271.0,0.0115976]
[1766114201452,0.00017378,86289.0,86257.0,0.0115995]
[1766114201453,0.14092511,86288.0,86268.0,0.0115981]
[1766114201659,0.14092511,86288.0,86269.0,0.00588]
[1766114201860,8.511e-05,86288.0,86270.0,0.0115978]
[1766114202159,0.00588,86287.0,86270.0,0.0950878]
[1766114202359,0.0174756,86287.0,86270.0,0.08349]
[1766114202759,0.0174756,86287.0,86269.0,0.00588]
[1766114203466,0.0115959,86285.0,86269.0,0.00588]
[1766114203766,0.00588,86287.0,86269.0,0.1007178]
[1766114203966,8.511e-05,86288.0,86273.0,0.0948374]
[1766114204266,0.00017378,86289.0,86273.0,0.0948374]
[1766114204463,0.00017378,86289.0,86273.0,0.08324]
[1766114204948,0.00017378,86289.0,86269.0,0.00588]
[1766114205562,0.00017378,86289.0,86269.0,0.08904]
[1766114206267,0.13617378,86289.0,86262.0,0.08316]
[1766114206648,0.13617378,86289.0,86264.0,0.08316]
[1766114206649,0.0115963,86282.0,86264.0,0.08316]
[1766114207064,0.0115958,86286.0,86265.0,0.0950784]
[1766114207357,0.00017378,86289.0,86265.0,0.08348]
[1766114207559,0.00017378,86289.0,86267.0,0.08348]
[1766114207764,0.0115943,86297.0,86280.0,0.08348]
[1766114207950,0.0115943,86297.0,86281.0,0.08936]
[1766114208460,0.0115946,86295.0,86281.0,0.08936]
[1766114209660,0.0115946,86295.0,86281.0,0.00588]
[1766114210161,0.13617378,86297.0,86281.0,1e-07]
[1766114210365,0.13617378,86297.0,86265.0,0.08367]
[1766114210366,0.0115969,86277.0,86265.0,0.08367]
[1766114210558,0.136,86284.0,86258.0,0.01391804]
[1766114210765,0.0115978,86271.0,86258.0,0.00231864]
[1766114210963,0.0115978,86271.0,86259.0,0.00588]
[1766114211466,0.00017388,86274.0,86259.0,0.0174792]
[1766114211668,0.00017388,86274.0,86259.0,0.00588]
[1766114212150,0.00017388,86274.0,86258.0,0.00231864]
[1766114212151,0.00017388,86274.0,86260.0,0.00588]
[1766114213356,0.00017388,86274.0,86258.0,0.00231864]
[1766114213357,0.00017388,86274.0,86261.0,0.00588]
[1766114213863,0.136,86270.0,86244.0,0.08266]
[1766114214171,0.0115994,86259.0,86248.0,0.00588]
[1766114214368,0.0115997,86257.0,86248.0,0.00588]
[1766114214672,0.1475997,86257.0,86238.0,0.0116021]
[1766114214889,0.1475997,86257.0,86214.0,0.09108427]
[1766114214890,0.0116023,86237.0,86214.0,0.083]
[1766114215169,0.00588,86236.0,86217.0,0.083]
[1766114215381,0.00588,86235.0,86217.0,0.083]
[1766114215559,0.0116029,86233.0,86214.0,0.00588]
[1766114215760,0.00011344,86232.0,86214.0,0.00588]
[1766114216978,0.0116031,86231.0,86214.0,0.00588]
[1766114217157,0.1476031,86231.0,86204.0,0.083]
[1766114217360,0.1476031,86231.0,86215.0,0.00116]
[1766114217563,0.136,86225.0,86212.0,0.0014]
[1766114218266,0.00011344,86232.0,86212.0,0.08734]
[1766114219265,3.44e-06,86232.0,86212.0,0.08734]
[1766114219569,0.13600344,86232.0,86210.0,0.20136721]
[1766114219770,0.13600344,86232.0,86136.0,0.0580792]
[1766114219771,0.136,86218.0,86194.0,0.00588]
[1766114220073,0.00588,86219.0,86201.0,0.13667]
[1766114220268,0.00588,86226.0,86203.0,0.13667]
[1766114221076,0.00017399,86223.0,86210.0,0.20136721]
[1766114221267,0.00488,86229.0,86211.0,0.14255]
[1766114221762,0.00488,86229.0,86212.0,0.1482768]
[1766114222169,0.00505399,86229.0,86212.0,0.1482768]
[1766114222789,0.00505399,86229.0,86211.0,0.00588]
[1766114223066,0.00588,86239.0,86220.0,0.1557957]
[1766114223267,0.00588,86239.0,86219.0,0.20136721]
[1766114223268,0.00588,86242.0,86222.0,0.14419]
[1766114223572,0.20136721,86260.0,86221.0,0.00588]
[1766114223573,0.20136721,86280.0,86225.0,0.14419]
[1766114223761,0.13617,86266.0,86235.0,0.14419]
[1766114223957,0.13617,86256.0,86242.0,0.00017399]
[1766114224175,0.011602,86248.0,86242.0,9e-08]
[1766114225068,0.0116014,86253.0,86242.0,9e-08]
[1766114225673,0.0116018,86250.0,86242.0,9e-08]
[1766114226169,0.0116012,86254.0,86242.0,9e-08]
[1766114228061,0.14205,86258.0,86242.0,9e-08]
[1766114228267,0.14205,86258.0,86067.0,0.26194543]
[1766114228268,0.0116034,86238.0,86214.0,0.14419]
[1766114228466,0.0116038,86235.0,86215.0,0.00588]
[1766114228672,0.0116038,86235.0,86216.0,0.00588]
[1766114228870,0.13617,86260.0,86221.0,0.14419]
[1766114229071,0.14205,86259.0,86229.0,0.14419]
[1766114229268,0.0116028,86242.0,86235.0,9e-08]
[1766114229571,0.00588,86247.0,86235.0,9e-08]
[1766114229778,0.0174822,86247.0,86235.0,9e-08]
[1766114230079,0.0116029,86241.0,86235.0,9e-08]
[1766114230279,0.0116034,86238.0,86235.0,9e-08]
[1766114230583,0.13617,86246.0,86235.0,9e-08]
[1766114230584,0.0116023,86246.0,86235.0,9e-08]
[1766114230770,0.0116026,86243.0,86235.0,9e-08]
[1766114230970,0.0116032,86240.0,86235.0,9e-08]
[1766114231378,0.0116024,86245.0,86235.0,9e-08]
[1766114231568,0.00017399,86253.0,86235.0,9e-08]
[1766114231881,0.011599,86270.0,86248.0,0.0116018]
[1766114232068,0.0115993,86268.0,86249.0,0.00588]
[1766114232372,0.0115992,86269.0,86250.0,0.14419]
[1766114232580,0.00588,86273.0,86250.0,0.14419]
[1766114232764,0.0115992,86269.0,86250.0,0.14419]
[1766114232964,0.00017399,86268.0,86251.0,0.00017399]
[1766114234279,0.0115995,86267.0,86251.0,0.00017399]
[1766114236172,0.00017399,86268.0,86255.0,0.011601]
[1766114236375,3.99e-06,86268.0,86256.0,0.00588]
[1766114236969,3.99e-06,86268.0,86257.0,0.1538807]
[1766114237673,3.99e-06,86268.0,86256.0,0.00588]
[1766114237674,3.99e-06,86268.0,86260.0,0.1538803]
[1766114237982,3.99e-06,86268.0,86260.0,0.14228]
[1766114238368,0.0115956,86296.0,86271.0,0.14228]
[1766114238582,0.00588,86295.0,86277.0,0.011598]
[1766114238771,0.00588,86295.0,86278.0,0.00588]
[1766114238978,0.0115958,86294.0,86278.0,0.00588]
[1766114239277,0.00588,86295.0,86278.0,0.00588]
[1766114239482,0.011596,86293.0,86278.0,0.00588]
[1766114239676,0.00605388,86295.0,86278.0,0.00588]
[1766114240077,0.00605388,86295.0,86279.0,0.0115978]
[1766114240272,0.00605388,86295.0,86281.0,0.0115974]
[1766114240474,0.00605388,86295.0,86285.0,0.0115969]
[1766114240785,1.44e-06,86298.0,86287.0,0.0115967]
[1766114241179,1.44e-06,86298.0,86286.0,0.00588]
[1766114241380,1.44e-06,86298.0,86286.0,0.0174768]
[1766114241584,1.44e-06,86298.0,86289.0,0.1538764]
[1766114241879,0.00017388,86302.0,86289.0,0.1538764]
[1766114242081,0.0115943,86306.0,86289.0,0.14228]
[1766114242273,0.0115943,86306.0,86286.0,0.0174768]
[1766114242474,0.00588,86307.0,86286.0,0.00588]
[1766114242475,0.14817,86307.0,86286.0,0.00588]
[1766114242679,0.0115943,86305.0,86286.0,0.00588]
[1766114243086,0.00017388,86304.0,86286.0,0.00588]
[1766114243983,0.00017388,86304.0,86286.0,0.14816]
[1766114244372,0.00017388,86304.0,86286.0,0.00588]
[1766114245275,0.0115956,86296.0,86287.0,0.00588]
[1766114246683,0.0115951,86299.0,86287.0,0.00588]
[1766114247185,0.0115951,86299.0,86279.0,0.0115977]
[1766114247488,0.0115955,86297.0,86280.0,0.00588]
[1766114247682,0.0115955,86297.0,86281.0,0.00588]
[1766114247981,0.0115955,86297.0,86282.0,0.00588]
[1766114249492,0.14229,86291.0,86277.0,0.00017388]
[1766114249682,0.14229,86288.0,86264.0,0.0115997]
[1766114249984,0.0115986,86274.0,86263.0,0.00588]
[1766114250284,0.14229,86279.0,86254.0,0.14228]
[1766114250486,0.1538878,86279.0,86255.0,0.00588]
[1766114250785,0.0115992,86269.0,86258.0,0.00017388]
[1766114250987,0.0115984,86275.0,86258.0,0.00017388]
[1766114251291,0.0115987,86273.0,86259.0,0.00588]
[1766114251990,0.15406208,86276.0,86259.0,0.00588]
[1766114252285,0.0115994,86268.0,86259.0,0.00588]
[1766114252674,0.0115996,86266.0,86259.0,0.00588]
[1766114252891,0.14229,86275.0,86259.0,0.00588]
[1766114252892,0.0115992,86269.0,86259.0,0.00588]
[1766114253283,0.0115995,86267.0,86258.0,0.00017388]
[1766114253476,0.14229,86275.0,86259.0,0.00588]
[1766114253683,0.0115991,86269.0,86259.0,0.00588]
[1766114253882,0.0115995,86267.0,86259.0,0.00588]
[1766114254283,0.00017388,86276.0,86259.0,0.00588]
[1766114254483,0.0115986,86274.0,86259.0,0.00588]
[1766114254690,0.00017388,86276.0,86259.0,0.00588]
[1766114254886,0.0115984,86275.0,86259.0,0.00588]
[1766114255091,0.0115987,86273.0,86259.0,0.00588]
[1766114256380,0.0115992,86269.0,86259.0,0.00588]
[1766114257079,0.0115988,86272.0,86259.0,0.00588]
[1766114257490,0.01177218,86276.0,86259.0,0.0174804]
[1766114258591,0.15406218,86276.0,86259.0,0.0174804]
[1766114258790,0.0115985,86274.0,86259.0,0.00588]
[1766114258989,0.14246388,86276.0,86259.0,0.00588]
[1766114259191,0.14229,86274.0,86259.0,0.00588]
[1766114259488,0.0115985,86274.0,86259.0,0.1597604]
[1766114260088,0.00017388,86276.0,86260.0,0.0116003]
[1766114260286,0.00017388,86276.0,86260.0,0.1538803]
[1766114260490,0.00017388,86276.0,86260.0,0.14228]
[1766114261193,0.00017388,86276.0,86264.0,0.14228]
[1766114261385,3.88e-06,86276.0,86264.0,0.14228]
[1766114261587,0.0115954,86297.0,86280.0,0.1538777]
[1766114261784,0.0115954,86297.0,86267.0,0.0115993]
[1766114261785,0.011595,86300.0,86283.0,0.0115972]
[1766114261991,0.00572,86303.0,86281.0,0.00588]
[1766114261992,0.0173146,86303.0,86285.0,0.1538769]
[1766114262191,0.00572,86303.0,86285.0,0.1538769]
[1766114262385,0.0115934,86312.0,86291.0,0.0115962]
[1766114262589,0.14229,86315.0,86291.0,0.0115962]
[1766114262590,0.00017388,86310.0,86293.0,0.00017388]
[1766114263295,0.0115954,86297.0,86291.0,2.2e-06]
[1766114263491,0.0115954,86297.0,86281.0,0.0115975]
[1766114263690,0.0115958,86294.0,86282.0,0.00588]
[1766114264094,0.0115958,86294.0,86276.0,0.0115981]
[1766114264398,0.0115975,86282.0,86263.0,0.0115999]
[1766114264599,0.14374,86287.0,86264.0,0.00588]
[1766114264893,0.011597,86285.0,86267.0,0.0115993]
[1766114265495,0.14374,86302.0,86270.0,0.14182]
[1766114265686,0.14374,86302.0,86281.0,0.14182]
[1766114265687,0.0115951,86300.0,86281.0,0.14182]
[1766114265994,0.0115953,86298.0,86282.0,0.00588]
[1766114266685,0.0115956,86296.0,86282.0,0.00588]
[1766114268095,0.00017388,86299.0,86282.0,0.1477]
[1766114268493,3.88e-06,86299.0,86289.0,0.0115964]
[1766114268697,3.88e-06,86299.0,86290.0,0.00588]
[1766114270484,3.88e-06,86299.0,86290.0,0.0174762]
[1766114270683,3.88e-06,86299.0,86290.0,0.1592962]
[1766114271099,0.14374,86298.0,86290.0,0.00588]
[1766114271293,3.88e-06,86299.0,86286.0,0.00017388]
[1766114271294,0.011596,86293.0,86286.0,0.00017388]
[1766114271494,0.14374,86296.0,86286.0,8e-08]
[1766114271698,3.88e-06,86299.0,86286.0,8e-08]
[1766114272195,0.011596,86293.0,86286.0,8e-08]
[1766114272390,3.88e-06,86299.0,86286.0,0.14182008]
[1766114273300,0.0115956,86296.0,86286.0,8e-08]
[1766114273489,0.0115956,86296.0,86283.0,0.003]
[1766114273490,0.14374,86288.0,86257.0,0.14182]
[1766114273690,0.14374,86288.0,86215.0,0.0116063]
[1766114273691,0.0115994,86268.0,86250.0,0.0116016]
[1766114274003,0.0115996,86266.0,86251.0,0.00588]
[1766114274296,0.14374,86274.0,86251.0,0.00588]
[1766114274502,0.0115994,86268.0,86254.0,0.00017388]
[1766114275202,0.00017388,86271.0,86254.0,0.01177498]
[1766114275599,0.00588,86289.0,86262.0,0.14182]
[1766114275794,0.0115976,86281.0,86264.0,0.0115997]
[1766114276500,0.00017388,86281.0,86272.0,0.0115987]
[1766114276696,0.00588,86289.0,86273.0,0.00588]
[1766114277207,0.0115982,86277.0,86261.0,0.00292]
[1766114277394,0.00492,86281.0,86266.0,0.0115995]
[1766114277703,0.0115977,86280.0,86265.0,0.00017388]
[1766114278106,0.00588,86281.0,86265.0,0.00017388]
[1766114278900,0.0115977,86280.0,86265.0,0.00017388]
[1766114279105,0.011598,86278.0,86265.0,0.00017388]
[1766114279292,0.00588,86281.0,86265.0,0.00017388]
[1766114279695,0.00011088,86282.0,86265.0,0.00017388]
[1766114279989,0.14374,86296.0,86272.0,0.1534186]
[1766114280189,0.14374,86296.0,86265.0,0.00017388]
[1766114280190,0.00588,86297.0,86273.0,0.1477]
[1766114280396,0.2058195,86323.0,86286.0,0.14182]
[1766114280601,0.0115937,86310.0,86291.0,0.1534161]
[1766114280803,0.011594,86308.0,86291.0,0.14182]
[1766114281105,0.14374,86307.0,86279.0,0.0115977]
[1766114281301,0.0115953,86298.0,86280.0,0.00388]
[1766114282008,0.0115956,86296.0,86276.0,0.0115982]
[1766114282207,0.00017388,86295.0,86277.0,0.00605388]
[1766114282408,0.00017388,86295.0,86277.0,0.00017388]
[1766114282705,0.14391388,86295.0,86277.0,0.00017388]
[1766114282904,0.0115977,86281.0,86260.0,0.0116002]
[1766114283203,0.0115977,86281.0,86261.0,0.00588]
[1766114283401,0.0115983,86276.0,86256.0,0.0116008]
[1766114283600,0.0115983,86276.0,86258.0,0.0116006]
[1766114283796,0.14374,86275.0,86258.0,0.00017388]
[1766114283998,0.1553385,86274.0,86259.0,0.00212]
[1766114284308,0.1553389,86271.0,86258.0,3.88e-06]
[1766114285306,0.14374,86271.0,86258.0,3.88e-06]
[1766114286401,0.011599,86270.0,86258.0,3.88e-06]
[1766114286705,0.14374,86271.0,86258.0,3.88e-06]
[1766114286706,0.1553389,86271.0,86258.0,3.88e-06]
[1766114287008,0.1553292,86269.0,86255.0,0.00588]
[1766114289008,0.0174786,86273.0,86255.0,0.017481]
[1766114289212,0.0115989,86271.0,86255.0,0.00588]
[1766114291714,0.14373,86268.0,86246.0,0.00588]
[1766114292016,0.00588,86267.0,86255.0,0.0116009]
[1766114292216,0.14961,86267.0,86252.0,0.0116014]
[1766114292915,0.00588,86267.0,86254.0,0.011601]
[1766114294205,0.00588,86272.0,86251.0,0.00017388]
[1766114294509,0.00588,86272.0,86257.0,0.0116006]
[1766114296810,0.00017388,86276.0,86268.0,0.0115992]
[1766114297206,0.00017388,86276.0,86263.0,0.00588]
[1766114297710,0.14499388,86276.0,86263.0,0.00588]
[1766114298106,0.1564184,86275.0,86252.0,0.14838]
[1766114298317,0.1564184,86275.0,86253.0,0.00588]
[1766114298510,0.14482,86275.0,86258.0,0.0116005]
[1766114298716,0.00017388,86276.0,86258.0,0.0116005]
[1766114298914,0.00017388,86276.0,86258.0,0.1599805]
[1766114299114,0.01177218,86276.0,86258.0,0.0116005]
[1766114299308,0.00017388,86276.0,86258.0,0.0116005]
[1766114300409,0.00017388,86276.0,86256.0,0.14838]
[1766114300818,0.14482,86310.0,86279.0,0.14838]
[1766114301113,0.0620795,86315.0,86279.0,0.14838]
[1766114301114,0.00588,86315.0,86298.0,0.0115951]
[1766114301318,0.00588,86315.0,86300.0,0.0115949]
[1766114301618,0.0115912,86329.0,86304.0,0.14838]
[1766114301805,0.00017377,86325.0,86308.0,0.00017377]
[1766114302513,0.00588,86324.0,86309.0,0.0115937]
[1766114302711,0.00588,86324.0,86309.0,0.1599737]
[1766114302908,0.00588,86324.0,86309.0,0.0115937]
[1766114303505,0.00588,86324.0,86313.0,0.0115932]
[1766114303705,0.00588,86324.0,86308.0,0.00017377]
[1766114303911,0.1507,86324.0,86308.0,0.00017377]
[1766114304111,0.1507,86324.0,86308.0,3.77e-06]
[1766114305025,0.1622918,86324.0,86308.0,3.77e-06]
[1766114305416,0.1564122,86321.0,86308.0,3.77e-06]
[1766114305716,0.14482,86312.0,86308.0,3.77e-06]
[1766114306022,0.00017377,86325.0,86308.0,3.77e-06]
[1766114306023,0.00588,86317.0,86308.0,3.77e-06]
[1766114308424,0.00588,86323.0,86308.0,3.77e-06]
[1766114308725,0.0174719,86323.0,86308.0,3.77e-06]
[1766114308927,0.1622919,86323.0,86308.0,3.77e-06]
[1766114309121,0.00588,86323.0,86311.0,0.0115935]
[1766114309324,0.00588,86323.0,86312.0,0.0115932]
[1766114309626,0.005,86322.0,86309.0,0.14838]
[1766114310020,0.005,86322.0,86308.0,0.01159757]
[1766114310021,0.0115931,86314.0,86308.0,3.77e-06]
[1766114310222,0.0115931,86314.0,86273.0,0.06527507]
[1766114310223,0.14482,86304.0,86284.0,0.011597]
[1766114310426,0.14482,86304.0,86285.0,0.00588]
[1766114310623,0.14482,86304.0,86286.0,0.0115967]
[1766114310929,0.0115946,86303.0,86285.0,0.00588]
[1766114311128,0.14482,86304.0,86285.0,0.00588]
[1766114311324,0.00017377,86303.0,86286.0,0.00017377]
[1766114311533,0.14499377,86303.0,86286.0,0.01177057]
[1766114312331,0.14499377,86303.0,86270.0,0.20153129]
[1766114312332,0.14482,86289.0,86262.0,0.0116001]
[1766114312518,0.011598,86278.0,86259.0,0.00588]
[1766114312718,0.011598,86278.0,86244.0,0.0116024]
[1766114312719,0.1507,86277.0,86247.0,0.1599821]
[1766114312931,0.1507,86277.0,86243.0,0.0116025]
[1766114312932,0.0115998,86264.0,86243.0,0.0116025]
[1766114313228,0.14482,86269.0,86238.0,0.14838]
[1766114313229,0.00017388,86262.0,86245.0,0.00011612]
[1766114313619,0.14499388,86262.0,86245.0,0.00011612]
[1766114313823,0.1564203,86261.0,86245.0,0.00011612]
[1766114314021,0.14482,86261.0,86245.0,0.00011612]
[1766114314928,0.00017388,86262.0,86233.0,8.852e-05]
[1766114314929,0.14482,86256.0,86233.0,8.852e-05]
[1766114315129,0.0116026,86244.0,86233.0,8.852e-05]
[1766114315327,0.00588,86243.0,86233.0,8.852e-05]